bitfinex/quotes_SOLUSD_20250130
["timestamp","ask_amount","ask_price","bid_price","bid_amount"]
[1738228199527,13.41184853,240.64,240.63,0.063]
[1738228199699,13.85528636,240.64,240.63,0.063]
[1738228201217,13.41184853,240.64,240.63,0.063]
[1738228203824,13.53733853,240.64,240.63,0.063]
[1738228205624,25.65584704,240.64,240.63,0.063]
[1738228205807,13.41184853,240.64,240.63,0.063]
[1738228206408,13.85528636,240.64,240.63,0.063]
[1738228206602,13.41184853,240.64,240.63,0.063]
[1738228206919,7.99300851,240.68,240.63,0.063]
[1738228207130,0.47343783,240.68,240.63,0.063]
[1738228207909,13.41184853,240.67,240.63,0.063]
[1738228208106,0.03,240.68,240.65,7.96300851]
[1738228208309,0.03,240.68,240.67,7.96300851]
[1738228208522,0.03,240.68,240.63,0.063]
[1738228208829,14.01077636,240.68,240.63,0.063]
[1738228209204,13.41184853,240.65,240.63,0.063]
[1738228210703,7.96300851,240.65,240.63,0.063]
[1738228212409,21.81829487,240.64,240.63,0.063]
[1738228212619,21.94378487,240.64,240.63,0.063]
[1738228212813,22.94378487,240.64,240.63,0.063]
[1738228213120,23.32025487,240.64,240.63,0.063]
[1738228214112,27.47575487,240.64,240.63,0.063]
[1738228214825,26.09928487,240.64,240.63,0.063]
[1738228215720,13.41184853,240.64,240.63,0.063]
[1738228215927,0.44343783,240.67,240.63,0.063]
[1738228215928,7.96300851,240.67,240.63,0.063]
[1738228216109,7.96300851,240.65,240.63,0.063]
[1738228216415,13.41184853,240.66,240.63,0.063]
[1738228216416,7.96300851,240.64,240.63,0.063]
[1738228216604,13.41184853,240.66,240.63,0.063]
[1738228216605,7.96300851,240.67,240.63,0.063]
[1738228216813,7.99300851,240.68,240.63,0.063]
[1738228217025,13.41184853,240.67,240.63,0.063]
[1738228220244,7.96300851,240.67,240.63,0.063]
[1738228220616,21.40485704,240.68,240.63,0.063]
[1738228221746,7.96300851,240.67,240.63,0.063]
[1738228221915,21.37485704,240.64,240.63,0.063]
[1738228222117,21.75132704,240.64,240.63,0.063]
[1738228222323,21.87681704,240.64,240.63,0.063]
[1738228222522,22.32025487,240.64,240.63,0.063]
[1738228223544,26.47575487,240.64,240.63,0.063]
[1738228225520,26.35026487,240.64,240.63,0.063]
[1738228228937,26.47575487,240.64,240.63,0.063]
[1738228229440,27.47575487,240.64,240.63,0.063]
[1738228230621,26.47575487,240.64,240.63,0.063]
[1738228231633,27.47575487,240.64,240.63,0.063]
[1738228233549,26.47575487,240.64,240.63,0.063]
[1738228236152,27.47575487,240.64,240.63,0.063]
[1738228237350,26.09928487,240.64,240.63,0.063]
[1738228237555,18.13627636,240.64,240.63,0.063]
[1738228237941,26.09928487,240.64,240.63,0.063]
[1738228238255,26.47575487,240.64,240.63,0.063]
[1738228239050,20.0,240.61,240.58,0.063]
[1738228239248,8.40644634,240.6,240.58,0.063]
[1738228239445,0.44343783,240.6,240.58,0.063]
[1738228239651,24.1564,240.59,240.58,0.063]
[1738228239845,37.56824853,240.59,240.58,0.063]
[1738228241750,46.03321704,240.59,240.58,0.063]
[1738228242156,46.47665487,240.59,240.58,0.063]
[1738228247058,20.0,240.55,240.51,1.5941]
[1738228247262,13.41184853,240.51,240.45,1.5762]
[1738228247563,13.41184853,240.49,240.45,1.5762]
[1738228248142,13.41184853,240.47,240.45,1.5762]
[1738228248854,13.85528636,240.49,240.45,1.5762]
[1738228249243,13.41184853,240.47,240.45,1.5762]
[1738228249961,13.41184853,240.47,240.43,8.02600851]
[1738228250166,13.85528636,240.47,240.43,0.063]
[1738228250342,13.41184853,240.47,240.43,0.063]
[1738228251773,13.41184853,240.45,240.43,0.063]
[1738228253958,17.57084853,240.44,240.43,0.063]
[1738228260385,25.53385704,240.44,240.43,0.063]
[1738228260569,17.57084853,240.44,240.43,0.063]
[1738228262882,17.69633853,240.44,240.43,0.063]
[1738228263060,26.47925487,240.44,240.43,0.063]
[1738228264979,18.13977636,240.44,240.43,0.063]
[1738228266183,17.57084853,240.44,240.43,0.063]
[1738228266972,7.96300851,240.51,240.43,0.063]
[1738228267173,4.1573,240.54,240.48,7.96300851]
[1738228267372,7.963008,240.53,240.49,7.96300851]
[1738228267573,20.0,240.5,240.48,7.96300851]
[1738228267792,20.0,240.5,240.47,7.96300851]
[1738228268003,13.41184853,240.52,240.47,7.96300851]
[1738228268304,13.41184853,240.52,240.46,1.5132]
[1738228268305,13.41184853,240.52,240.46,9.47620851]
[1738228268509,20.0,240.51,240.47,7.96300851]
[1738228268892,20.0,240.5,240.47,7.96300851]
[1738228269084,13.41184853,240.53,240.48,7.96300851]
[1738228269396,13.41184853,240.53,240.51,7.96300851]
[1738228269595,13.41184853,240.53,240.5,7.96300851]
[1738228270391,20.0,240.55,240.51,7.96300851]
[1738228270588,0.03,240.58,240.53,7.96300851]
[1738228270897,0.03,240.58,240.54,7.96300851]
[1738228271079,17.59844853,240.58,240.46,1.5132]
[1738228271286,17.59844853,240.58,240.53,7.96300851]
[1738228271698,17.59844853,240.58,240.52,7.96300851]
[1738228273615,13.44184853,240.58,240.52,7.96300851]
[1738228273816,0.03,240.58,240.53,7.96300851]
[1738228275084,0.03,240.58,240.56,7.96300851]
[1738228277190,0.03,240.58,240.54,7.96300851]
[1738228279318,0.03,240.58,240.56,7.96300851]
[1738228281320,0.03,240.58,240.54,7.96300851]
[1738228285209,0.03,240.58,240.52,7.96300851]
[1738228286489,0.03,240.58,240.54,7.96300851]
[1738228286809,20.0,240.57,240.52,7.96300851]
[1738228287107,20.0,240.57,240.5,7.96300851]
[1738228287891,4.1569,240.56,240.5,7.96300851]
[1738228288908,13.41184853,240.55,240.5,7.96300851]
[1738228289900,13.41184853,240.55,240.48,7.96300851]
[1738228290082,4.1573,240.54,240.47,7.96300851]
[1738228290286,4.1573,240.54,240.48,7.96300851]
[1738228292115,13.41184853,240.55,240.5,7.96300851]
[1738228292411,17.56874853,240.56,240.5,8.02600851]
[1738228293491,25.53175704,240.56,240.5,0.063]
[1738228296412,25.97519487,240.56,240.5,0.063]
[1738228297412,25.53175704,240.56,240.5,0.063]
[1738228298101,25.97519487,240.56,240.5,0.063]
[1738228299803,7.96300851,240.54,240.5,0.063]
[1738228300006,4.1574,240.53,240.5,0.063]
[1738228301316,8.40644634,240.54,240.5,0.063]
[1738228301621,20.0,240.55,240.51,7.96300851]
[1738228302611,20.0,240.57,240.53,7.96300851]
[1738228304700,20.0,240.57,240.51,7.96300851]
[1738228305094,0.03,240.58,240.55,7.96300851]
[1738228310019,0.03,240.58,240.53,7.96300851]
[1738228310800,0.03,240.58,240.51,7.96300851]
[1738228311117,7.99300851,240.58,240.5,1.6437]
[1738228311501,7.99300851,240.58,240.51,7.96300851]
[1738228312119,0.03,240.58,240.5,1.6437]
[1738228312308,0.03,240.58,240.53,7.96300851]
[1738228316823,0.03,240.58,240.55,7.96300851]
[1738228320707,0.03,240.58,240.53,7.96300851]
[1738228320903,0.03,240.58,240.5,1.6437]
[1738228320904,0.03,240.58,240.51,7.96300851]
[1738228321226,13.41184853,240.57,240.5,0.063]
[1738228322126,13.41184853,240.57,240.5,8.02600851]
[1738228322307,0.03,240.58,240.51,7.96300851]
[1738228322707,17.59844853,240.58,240.51,7.96300851]
[1738228323302,17.59844853,240.58,240.5,8.02600851]
[1738228323506,25.56145704,240.58,240.5,8.02600851]
[1738228325603,12.14960851,240.58,240.52,7.96300851]
[1738228325917,0.03,240.58,240.52,7.96300851]
[1738228326319,0.03,240.58,240.56,7.96300851]
[1738228326917,0.03,240.58,240.54,7.96300851]
[1738228327113,0.03,240.58,240.52,7.96300851]
[1738228328426,0.03,240.58,240.55,0.063]
[1738228329721,13.44184853,240.58,240.55,0.063]
[1738228329929,17.59854853,240.58,240.55,0.063]
[1738228330932,25.56155704,240.58,240.55,0.063]
[1738228332120,21.37485704,240.56,240.55,0.063]
[1738228334132,25.53175704,240.56,240.55,0.063]
[1738228336036,25.65724704,240.56,240.55,0.063]
[1738228338156,26.03371704,240.56,240.55,0.063]
[1738228338358,27.03371704,240.56,240.55,0.063]
[1738228339415,26.03371704,240.56,240.55,0.063]
[1738228341152,27.03371704,240.56,240.55,0.063]
[1738228341738,20.0,240.53,240.45,7.85200851]
[1738228341923,13.41184853,240.51,240.45,7.85200851]
[1738228343023,13.41184853,240.51,240.47,7.96300851]
[1738228343418,8.40644634,240.55,240.47,7.96300851]
[1738228343645,4.1569,240.56,240.51,7.96300851]
[1738228343856,13.41184853,240.55,240.51,7.96300851]
[1738228345929,17.56894853,240.55,240.51,7.96300851]
[1738228346129,17.56894853,240.55,240.49,7.96300851]
[1738228346332,17.56894853,240.55,240.48,7.96300851]
[1738228349549,17.56894853,240.55,240.5,7.96300851]
[1738228352561,7.963009,240.56,240.52,7.96300851]
[1738228352886,0.03,240.58,240.54,7.96300851]
[1738228353155,0.03,240.58,240.56,7.96300851]
[1738228358436,0.03,240.58,240.57,7.96300851]
[1738228365668,0.03,240.58,240.57,8.08849851]
[1738228366658,0.03,240.68,240.57,8.08849851]
[1738228366973,0.03,240.68,240.65,7.96300851]
[1738228367556,0.03,240.68,240.63,7.96300851]
[1738228368275,0.03,240.68,240.64,7.96300851]
[1738228369766,0.03,240.68,240.66,7.96300851]
[1738228372783,0.03,240.68,240.62,7.96300851]
[1738228372973,13.41184853,240.67,240.6,7.96300851]
[1738228373173,13.41184853,240.65,240.59,7.96300851]
[1738228374671,17.56724853,240.65,240.59,7.96300851]
[1738228375272,17.56724853,240.65,240.58,7.96300851]
[1738228375466,25.53025704,240.65,240.58,7.96300851]
[1738228375966,17.56724853,240.65,240.58,7.96300851]
[1738228376376,17.56724853,240.65,240.59,7.96300851]
[1738228376985,13.41184853,240.62,240.55,7.96300851]
[1738228377372,25.97369487,240.65,240.57,7.96300851]
[1738228377569,25.53025704,240.65,240.58,7.96300851]
[1738228379787,13.85528636,240.64,240.56,7.96300851]
[1738228380171,13.41184853,240.64,240.56,7.96300851]
[1738228380670,17.56734853,240.64,240.56,7.96300851]
[1738228381469,17.56734853,240.64,240.57,7.96300851]
[1738228381890,10.3936,240.66,240.61,7.96300851]
[1738228382068,8.81291634,240.69,240.63,7.96300851]
[1738228382069,0.03,240.69,240.63,7.96300851]
[1738228382389,0.03,240.69,240.67,7.96300851]
[1738228382973,20.03,240.69,240.67,7.96300851]
[1738228383192,0.03,240.69,240.67,7.96300851]
[1738228402715,0.03,240.69,240.65,7.96300851]
[1738228403183,0.03,240.69,240.64,7.96300851]
[1738228403614,0.03,240.69,240.65,7.96300851]
[1738228403799,0.03,240.69,240.66,7.96300851]
[1738228406015,0.03,240.69,240.65,7.96300851]
[1738228408117,0.03,240.69,240.66,7.96300851]
[1738228409303,0.03,240.69,240.65,7.96300851]
[1738228409913,0.03,240.69,240.61,7.96300851]
[1738228409914,8.43644634,240.69,240.61,7.96300851]
[1738228410101,13.41184853,240.67,240.61,7.96300851]
[1738228410301,0.03,240.68,240.62,7.96300851]
[1738228410919,13.44184853,240.68,240.62,7.96300851]
[1738228412122,17.59674853,240.68,240.62,7.96300851]
[1738228412496,17.59674853,240.68,240.63,7.96300851]
[1738228413199,0.03,240.68,240.63,7.96300851]
[1738228413918,0.03,240.68,240.64,7.96300851]
[1738228415026,0.03,240.68,240.63,7.96300851]
[1738228416020,0.03,240.68,240.64,7.96300851]
[1738228416305,0.03,240.68,240.66,7.96300851]
[1738228416495,0.03,240.68,240.65,7.96300851]
[1738228419797,0.03,240.68,240.62,7.96300851]
[1738228419998,13.44184853,240.68,240.62,7.96300851]
[1738228420703,21.40485704,240.68,240.61,7.96300851]
[1738228420904,13.41184853,240.66,240.61,7.96300851]
[1738228422399,13.41184853,240.66,240.62,7.96300851]
[1738228423296,0.03,240.68,240.64,7.96300851]
[1738228423510,0.03,240.68,240.65,7.96300851]
[1738228423991,0.03,240.68,240.67,7.96300851]
[1738228428120,0.03,240.68,240.65,7.96300851]
[1738228428911,0.03,240.68,240.66,7.96300851]
[1738228432918,0.03,240.68,240.64,7.96300851]
[1738228438227,0.03,240.68,240.66,7.96300851]
[1738228443747,0.03,240.68,240.62,7.96300851]
[1738228444619,7.99300851,240.68,240.6,7.96300851]
[1738228445127,13.41184853,240.66,240.6,7.96300851]
[1738228446731,13.41184853,240.66,240.61,7.96300851]
[1738228446933,13.41184853,240.66,240.62,7.96300851]
[1738228447319,0.03,240.68,240.62,7.96300851]
[1738228447524,4.1849,240.68,240.62,7.96300851]
[1738228448236,0.03,240.68,240.62,7.96300851]
[1738228448545,0.03,240.68,240.66,7.96300851]
[1738228449224,0.03,240.68,240.6,31.85203404]
[1738228449225,0.03,240.68,240.65,7.96300851]
[1738228449626,0.03,240.68,240.63,7.96300851]
[1738228451439,0.03,240.68,240.66,7.96300851]
[1738228452841,0.03,240.68,240.67,7.96300851]
[1738228453542,6.54393783,240.87,240.73,0.12549]
[1738228453742,6.1005,240.87,240.81,7.96300851]
[1738228454253,13.41184853,240.86,240.82,7.96300851]
[1738228454445,7.44790299,240.88,240.82,7.96300851]
[1738228454817,13.41184853,240.87,240.82,7.96300851]
[1738228455024,7.44790299,240.88,240.82,7.96300851]
[1738228455442,7.44790299,240.88,240.82,8.08849851]
[1738228455636,7.44790299,240.88,240.82,7.96300851]
[1738228455846,13.41184853,240.89,240.82,7.96300851]
[1738228456226,18.00648636,240.9,240.82,7.96300851]
[1738228456422,17.56304853,240.9,240.82,7.96300851]
[1738228457243,25.52605704,240.9,240.82,7.96300851]
[1738228457968,17.56304853,240.9,240.82,7.96300851]
[1738228459048,25.52605704,240.9,240.82,7.96300851]
[1738228459846,17.56304853,240.9,240.82,7.96300851]
[1738228461128,4.1509,240.91,240.82,7.96300851]
[1738228461657,10.2137,240.93,240.82,8.08849851]
[1738228462163,13.41184853,240.92,240.82,8.08849851]
[1738228462445,0.03,240.93,240.82,8.46496851]
[1738228463826,0.03,240.93,240.82,8.08849851]
[1738228464027,0.03,240.93,240.82,41.45163255]
[1738228464442,0.03,240.93,240.82,9.59959851]
[1738228464628,0.03,240.93,240.82,42.45076641]
[1738228464839,0.03,240.93,240.84,0.12549]
[1738228465040,0.03,240.93,240.91,7.96300851]
[1738228465753,0.03,240.93,240.89,7.96300851]
[1738228465941,0.03,240.93,240.91,7.96300851]
[1738228466725,0.03,240.93,240.89,7.96300851]
[1738228467065,13.41184853,240.9,240.84,7.96300851]
[1738228467534,20.0,240.91,240.87,7.96300851]
[1738228467734,20.0,240.91,240.86,7.96300851]
[1738228468049,13.41184853,240.92,240.85,7.96300851]
[1738228468262,13.41184853,240.92,240.87,7.96300851]
[1738228468263,20.0,240.92,240.87,7.96300851]
[1738228469254,20.0,240.92,240.81,0.62271588]
[1738228469255,13.44184853,240.93,240.88,7.96300851]
[1738228469649,0.03,240.93,240.92,7.96300851]
[1738228469861,0.03,240.93,240.91,7.96300851]
[1738228473349,0.03,240.93,240.92,0.12549]
[1738228474155,0.03,240.93,240.91,7.96300851]
[1738228475540,0.03,240.93,240.92,0.12549]
[1738228475745,0.03,240.93,240.91,7.96300851]
[1738228477045,0.03,240.93,240.92,1.12446395]
[1738228478552,0.03,240.93,240.92,15.17489223]
[1738228480154,20.0,241.0,240.95,1.0]
[1738228480350,20.0,241.0,240.99,12.52751828]
[1738228480551,20.0,241.0,240.99,12.40202828]
[1738228481459,20.0,241.0,240.99,12.90398828]
[1738228481656,20.0,241.0,240.99,13.90398828]
[1738228481971,20.0,241.0,240.99,15.51288828]
[1738228482161,20.0,241.0,240.99,14.51288828]
[1738228483170,20.0,241.0,240.99,15.51288828]
[1738228483360,20.0,241.0,240.99,14.51288828]
[1738228483564,20.0,241.0,240.99,14.26190828]
[1738228483873,20.0,241.0,240.99,12.65300828]
[1738228484266,20.0,241.0,240.99,12.52751828]
[1738228484669,20.0,241.0,240.99,12.40202828]
[1738228485886,20.0,241.0,240.97,12.40202828]
[1738228487582,24.1494,241.0,240.97,12.40202828]
[1738228487753,24.1494,241.0,240.95,12.40202828]
[1738228491387,24.1494,241.0,240.94,12.40202828]
[1738228491877,24.1494,241.0,240.9,12.40202828]
[1738228491878,12.40202828,240.97,240.9,12.40202828]
[1738228492295,13.41184853,240.97,240.91,12.40202828]
[1738228492665,4.1496,240.99,240.92,12.40202828]
[1738228492981,20.0,240.97,240.93,12.40202828]
[1738228493485,20.0,240.97,240.92,12.40202828]
[1738228493867,0.03,240.96,240.92,12.40202828]
[1738228494068,0.03,240.96,240.93,12.40202828]
[1738228494283,0.03,240.96,240.92,12.40202828]
[1738228494284,20.03,240.96,240.92,12.40202828]
[1738228494467,20.03,240.96,240.91,12.40202828]
[1738228494787,20.03,240.96,240.89,12.40202828]
[1738228494998,0.03,240.96,240.89,12.40202828]
[1738228495166,13.44184853,240.96,240.89,12.40202828]
[1738228496270,4.1502,240.95,240.89,12.40202828]
[1738228496584,13.41184853,240.94,240.89,12.40202828]
[1738228496784,13.41184853,240.94,240.88,12.40202828]
[1738228497094,25.81387681,240.94,240.86,12.40202828]
[1738228497291,13.41184853,240.92,240.86,12.40202828]
[1738228497474,13.41184853,240.92,240.85,12.40202828]
[1738228497670,13.41184853,240.92,240.86,12.40202828]
[1738228498207,13.41184853,240.92,240.87,12.40202828]
[1738228499081,13.41184853,240.92,240.86,12.40202828]
[1738228499279,13.41184853,240.92,240.87,12.40202828]
[1738228500383,12.40202828,240.93,240.86,12.40202828]
[1738228500696,13.41184853,240.92,240.86,12.40202828]
[1738228501690,12.40202828,240.92,240.85,12.40202828]
[1738228501870,4.59393783,240.93,240.83,0.063]
[1738228501871,13.41184853,240.9,240.84,12.40202828]
[1738228502969,13.41184853,240.86,240.83,0.063]
[1738228503294,25.81387681,240.86,240.83,0.063]
[1738228504008,13.41184853,240.84,240.83,0.063]
[1738228504206,26.25731464,240.84,240.83,0.063]
[1738228504577,22.18455169,240.84,240.83,0.063]
[1738228505884,26.33665169,240.84,240.83,0.063]
[1738228506675,30.80933503,240.84,240.83,0.063]
[1738228509313,30.93482503,240.84,240.83,0.063]
[1738228509508,13.41184853,240.78,240.71,12.42547867]
[1738228509793,13.41184853,240.75,240.69,0.063]
[1738228510543,4.1538,240.74,240.69,0.063]
[1738228510673,12.8689165,240.8,240.73,12.42547867]
[1738228510877,4.1529,240.8,240.75,12.42547867]
[1738228511278,20.0,240.79,240.75,12.42547867]
[1738228512084,20.0,240.79,240.74,12.42547867]
[1738228512289,13.41184853,240.78,240.73,12.42547867]
[1738228513315,24.153,240.79,240.74,12.42547867]
[1738228513504,13.41184853,240.78,240.74,12.42547867]
[1738228514429,13.41184853,240.78,240.73,12.42547867]
[1738228516032,1.6149,240.84,240.77,12.42547867]
[1738228516341,18.790078,240.86,240.8,12.42547867]
[1738228516504,13.41184853,240.85,240.8,12.42547867]
[1738228516836,18.790078,240.86,240.8,12.42547867]
[1738228517008,13.41184853,240.85,240.78,12.42547867]
[1738228522122,13.41184853,240.83,240.76,12.42547867]
[1738228524227,25.8373272,240.83,240.75,12.42547867]
[1738228524423,29.9896272,240.83,240.75,12.42547867]
[1738228524727,25.8373272,240.83,240.75,12.42547867]
[1738228524936,26.28076503,240.83,240.75,12.42547867]
[1738228525113,25.8373272,240.83,240.76,12.42547867]
[1738228525312,13.41184853,240.83,240.78,12.42547867]
[1738228525625,1.6133,240.9,240.82,12.42547867]
[1738228525824,1.6133,240.9,240.84,12.42547867]
[1738228526027,13.41184853,240.89,240.84,12.42547867]
[1738228526219,13.41184853,240.89,240.83,12.42547867]
[1738228526420,25.8373272,240.89,240.82,12.42547867]
[1738228527517,13.41184853,240.89,240.82,12.42547867]
[1738228527711,13.41184853,240.89,240.83,12.42547867]
[1738228528325,25.8373272,240.89,240.82,12.42547867]
[1738228529211,29.9885272,240.89,240.82,12.42547867]
[1738228530221,17.56304853,240.89,240.83,12.42547867]
[1738228530610,17.56304853,240.89,240.75,0.37647]
[1738228530611,25.95403985,240.89,240.81,7.94755349]
[1738228531331,25.98403985,240.89,240.81,7.94755349]
[1738228532114,25.98403985,240.89,240.82,7.94755349]
[1738228532309,13.41184853,240.87,240.81,7.94755349]
[1738228532512,13.85528636,240.87,240.81,7.94755349]
[1738228533334,4.1517,240.86,240.81,7.94755349]
[1738228533807,4.1517,240.86,240.82,7.94755349]
[1738228534627,4.1517,240.86,240.81,7.94755349]
[1738228541148,4.1521,240.84,240.81,7.94755349]
[1738228541324,4.1521,240.84,240.78,0.063]
[1738228541325,4.59553783,240.84,240.79,7.94755349]
[1738228542325,4.1524,240.82,240.78,0.063]
[1738228542532,13.41184853,240.81,240.78,0.063]
[1738228544455,4.1528,240.8,240.78,0.063]
[1738228545334,33.85528636,240.79,240.78,0.063]
[1738228546460,41.80284036,240.79,240.78,0.063]
[1738228546633,45.95574036,240.79,240.78,0.063]
[1738228547041,45.51230253,240.79,240.78,0.063]
[1738228547238,32.100454,240.79,240.78,0.063]
[1738228547445,6.6089,240.84,240.78,8.01055349]
[1738228547850,8.010553,240.83,240.8,7.94755349]
[1738228548158,17.56354853,240.86,240.8,7.94755349]
[1738228548358,25.51110153,240.86,240.8,7.94755349]
[1738228549364,4.1515,240.88,240.84,7.94755349]
[1738228549531,20.0,240.87,240.82,7.94755349]
[1738228550030,20.0,240.87,240.81,7.94755349]
[1738228550031,13.41184853,240.86,240.81,7.94755349]
[1738228550263,13.41184853,240.86,240.79,7.94755349]
[1738228550657,20.44343783,240.87,240.81,7.94755349]
[1738228550860,12.099054,240.88,240.82,7.94755349]
[1738228552561,12.099054,240.88,240.81,7.94755349]
[1738228553137,4.1515,240.88,240.81,7.94755349]
[1738228553540,4.1515,240.88,240.82,7.94755349]
[1738228555364,4.1515,240.88,240.81,7.94755349]
[1738228555583,13.44184853,240.89,240.82,7.94755349]
[1738228555759,17.59304853,240.89,240.82,7.94755349]
[1738228556460,0.03,240.89,240.88,7.94755349]
[1738228558156,0.03,240.89,240.88,7.44755349]
[1738228559672,0.03,240.89,240.88,7.57304349]
[1738228560271,0.03,240.89,240.88,10.47853349]
[1738228560469,0.03,240.89,240.88,11.35202407]
[1738228560678,0.03,240.89,240.88,20.48472407]
[1738228561738,0.03,240.89,240.88,22.12333967]
[1738228563565,0.03,240.89,240.88,18.61123349]
[1738228563863,0.03,240.89,240.88,15.70574349]
[1738228564368,0.03,240.89,240.88,9.11864349]
[1738228565365,0.03,240.89,240.88,8.99315349]
[1738228566149,0.03,240.89,240.88,9.11864349]
[1738228567475,0.03,240.96,240.95,0.25098]
[1738228567665,20.0,241.0,240.95,41.48553215]
[1738228567846,20.0,241.0,240.99,7.94755349]
[1738228568049,20.0,241.0,240.99,10.85304349]
[1738228568251,20.0,241.0,240.99,10.72755349]
[1738228568549,20.0,241.0,240.99,15.17523495]
[1738228568966,20.0,241.0,240.99,15.67719495]
[1738228569878,20.0,241.0,240.99,15.42621495]
[1738228570450,20.0,241.0,240.99,15.67719495]
[1738228570752,20.0,241.0,240.99,15.42621495]
[1738228571382,20.0,241.0,240.99,15.30072495]
[1738228571850,20.0,241.0,240.99,15.17523495]
[1738228575281,20.0,241.0,240.99,17.24399495]
[1738228575979,19.5,241.0,240.99,17.24399495]
[1738228576278,1.0,241.1,241.0,13.41184853]
[1738228576470,28.07242995,241.24,241.19,20.0]
[1738228576471,15.677195,241.24,241.19,20.0]
[1738228576774,15.677195,241.24,241.23,12.39523495]
[1738228576982,32.5849615,241.35,241.23,12.39523495]
[1738228577158,39.10195381,241.39,241.34,12.39523495]
[1738228577353,52.02049284,241.39,241.38,12.39523495]
[1738228577795,52.02049284,241.39,241.36,12.39523495]
[1738228578401,52.02049284,241.39,241.34,12.39523495]
[1738228578956,52.02049284,241.39,241.3,12.39523495]
[1738228579376,52.02049284,241.39,241.32,12.39523495]
[1738228579768,52.05049284,241.39,241.32,12.39523495]
[1738228580291,20.03,241.39,241.32,12.39523495]
[1738228580790,20.0,241.37,241.32,12.39523495]
[1738228581474,20.03,241.39,241.32,11.89523495]
[1738228582262,20.0,241.37,241.32,11.89523495]
[1738228582465,20.0,241.37,241.3,12.39523495]
[1738228582897,20.0,241.37,241.32,12.39523495]
[1738228585086,24.1431,241.37,241.32,12.39523495]
[1738228586190,24.1431,241.37,241.3,12.39523495]
[1738228587387,13.41184853,241.36,241.3,12.39523495]
[1738228587890,13.41184853,241.36,241.28,12.39523495]
[1738228588577,13.41184853,241.34,241.28,12.39523495]
[1738228589396,25.80708348,241.34,241.26,12.39523495]
[1738228589609,13.41184853,241.3,241.24,12.39523495]
[1738228589776,13.41184853,241.32,241.24,12.39523495]
[1738228590095,13.41184853,241.32,241.26,12.39523495]
[1738228590592,17.55584853,241.32,241.26,12.39523495]
[1738228590797,17.55584853,241.32,241.16,0.25098]
[1738228590798,13.41184853,241.3,241.22,12.39523495]
[1738228591002,12.39523495,241.26,241.17,12.39523495]
[1738228591297,12.39523495,241.26,241.19,12.39523495]
[1738228592005,12.39523495,241.31,241.23,12.39523495]
[1738228592307,10.7055,241.32,241.26,12.39523495]
[1738228592475,13.41184853,241.28,241.22,12.39523495]
[1738228592674,4.1447,241.27,241.21,12.39523495]
[1738228592884,4.1447,241.27,241.2,12.39523495]
[1738228593292,25.80708348,241.26,241.19,12.39523495]
[1738228593690,13.41184853,241.26,241.2,12.39523495]
[1738228594084,25.80708348,241.26,241.18,12.39523495]
[1738228594281,4.1447,241.27,241.18,12.39523495]
[1738228594282,13.41184853,241.24,241.18,12.39523495]
[1738228594480,25.80708348,241.26,241.18,12.39523495]
[1738228594692,13.41184853,241.24,241.19,12.39523495]
[1738228595304,13.41184853,241.24,241.18,12.39523495]
[1738228595898,13.41184853,241.24,241.19,12.39523495]
[1738228596601,13.41184853,241.24,241.18,12.39523495]
[1738228596797,17.55724853,241.24,241.18,12.39523495]
[1738228597103,17.55724853,241.24,241.09,312.12549]
[1738228597104,4.1454,241.24,241.19,12.39523495]
[1738228597307,4.1443,241.29,241.22,12.39523495]
[1738228597680,4.1442,241.31,241.24,12.39523495]
[1738228597884,12.39523495,241.28,241.21,12.39523495]
[1738228598087,13.41184853,241.25,241.19,12.39523495]
[1738228598298,13.41184853,241.23,241.17,12.39523495]
[1738228598609,13.41184853,241.23,241.13,12.39523495]
[1738228598610,4.1459,241.2,241.13,12.39523495]
[1738228598792,13.41184853,241.17,241.11,12.39523495]
[1738228599397,13.41184853,241.19,241.13,12.39523495]
[1738228599703,13.41184853,241.19,241.15,12.39523495]
[1738228599904,13.41184853,241.19,241.12,12.39523495]
[1738228600904,16.54113495,241.2,241.12,12.39523495]
[1738228600905,13.41184853,241.17,241.12,12.39523495]
[1738228603313,12.39523495,241.24,241.16,12.39523495]